bitfinex-derivatives/quotes_SOLF0:USTF0_20230102
["timestamp","ask_amount","ask_price","bid_price","bid_amount"]
[1672644470238,0.1195786,11.032,11.015,0.11955322]
[1672644470444,13.8295786,11.031,11.008,0.11955322]
[1672644470660,5.1195786,11.03,11.008,0.11955322]
[1672644470871,0.1195786,11.029,11.008,0.11955322]
[1672644472334,0.1195786,11.029,11.013,50.0]
[1672644472654,0.1195786,11.029,11.014,5.11955322]
[1672644472865,13.71,11.031,11.014,5.11955322]
[1672644472866,5.1195786,11.03,11.015,0.11955322]
[1672644473071,0.1195786,11.029,11.015,0.11955322]
[1672644473499,0.1195786,11.029,11.014,5.11955322]
[1672644473706,0.1195786,11.029,11.015,0.11955322]
[1672644474443,0.1195786,11.028,11.008,0.11955322]
[1672644474653,0.1195786,11.027,11.008,0.11955322]
[1672644474862,5.11997692,11.028,11.007,5.11887168]
[1672644476016,5.11997692,11.028,11.013,50.0]
[1672644476017,0.11997692,11.028,11.013,50.0]
[1672644476222,54.82,11.05,11.007,5.11887168]
[1672644476223,0.11997692,11.036,11.012,0.11887168]
[1672644476439,0.11997692,11.036,11.013,50.0]
[1672644476643,0.11997692,11.036,11.014,0.11887168]
[1672644476860,0.11997692,11.035,11.015,0.11887168]
[1672644477063,0.11997692,11.034,11.015,0.11887168]
[1672644477274,5.0,11.033,11.015,0.11887168]
[1672644477490,0.11997692,11.032,11.013,0.11887168]
[1672644477698,5.11997692,11.031,11.011,5.11887168]
[1672644477903,0.11997692,11.03,11.012,0.11887168]
[1672644478114,0.11997692,11.025,11.0,0.11887168]
[1672644478326,0.11997692,11.024,11.0,0.11887168]
[1672644478751,5.11997692,11.024,11.0,0.11887168]
[1672644479064,0.11997692,11.022,11.0,0.11887168]
[1672644479486,5.11997692,11.021,11.0,0.11887168]
[1672644479697,0.11997692,11.02,11.0,0.11887168]
[1672644480223,0.11997692,11.02,11.003,50.0]
[1672644480431,0.11997692,11.02,11.004,5.11887168]
[1672644480748,0.11997692,11.019,10.999,0.11887168]
[1672644480957,0.11997692,11.017,10.998,0.11887168]
[1672644481164,0.03604234,10.998,10.996,5.0]
[1672644481375,0.03604234,10.998,10.993,50.0]
[1672644481798,0.03604234,10.998,10.991,5.0]
[1672644482008,0.03604234,10.998,10.994,5.0]
[1672644482214,0.03604234,10.998,10.994,55.0]
[1672644482432,0.03604234,10.998,10.994,50.0]
[1672644483904,0.03604234,10.998,10.99,58.4206]
[1672644484325,0.03604234,10.998,10.994,50.0]
[1672644484537,0.03604234,10.998,10.995,5.0]
[1672644485270,0.03604234,10.998,10.994,50.0]
[1672644485481,0.03604234,10.998,10.99,58.4206]
[1672644485690,0.03604234,10.998,10.994,50.0]
[1672644486110,0.03604234,10.998,10.99,53.4206]
[1672644486315,0.03604234,10.998,10.984,5.0]
[1672644486529,0.03604234,10.998,10.991,16.0718544]
[1672644486952,0.03604234,10.998,10.994,50.0]
[1672644487160,0.03604234,10.998,10.987,5.0]
[1672644487371,0.03604234,10.998,10.994,50.0]
[1672644487584,0.03604234,10.998,10.995,5.0]
[1672644487793,0.03604234,10.998,10.987,57.7084]
[1672644488211,0.03604234,10.998,10.987,52.7084]
[1672644488841,0.03604234,10.998,10.988,5.0]
[1672644489053,0.03604234,10.998,10.988,21.07377584]
[1672644489472,0.03604234,10.998,10.989,21.07377584]
[1672644489677,0.03604234,10.998,10.989,16.07377584]
[1672644489993,13.61,11.02,10.99,5.0]
[1672644490204,0.11997692,11.015,11.005,50.0]
[1672644490522,0.11997692,11.022,11.005,50.0]
[1672644490733,5.11915984,11.023,10.995,50.0]
[1672644490943,0.11915984,11.021,10.996,5.0]
[1672644491153,0.11915984,11.02,10.996,5.0]
[1672644491887,5.11915984,11.02,10.997,5.0]
[1672644492092,0.11915984,11.019,10.997,5.0]
[1672644492304,0.11915984,11.019,10.975,50.0]
[1672644492305,13.71,10.998,10.975,50.0]
[1672644492516,1.11915984,10.997,10.975,50.0]
[1672644492724,0.11915984,10.996,10.976,21.1590485]
[1672644493152,0.11915984,10.996,10.977,16.1590485]
[1672644493361,0.11915984,10.996,10.978,5.0]
[1672644493572,0.11915984,10.996,10.985,50.0]
[1672644495668,0.11915984,10.996,10.979,52.1998]
[1672644495878,0.11915984,11.001,10.976,5.0]
[1672644496092,0.11915984,11.0,10.976,5.0]
[1672644496302,0.11915984,10.998,10.975,50.0]
[1672644496510,13.72915984,10.995,10.968,52.1998]
[1672644496722,5.11915984,10.994,10.969,5.0]
[1672644496936,0.11915984,10.993,10.969,5.0]
[1672644497145,5.11915984,10.993,10.969,5.0]
[1672644497359,0.11915984,10.992,10.969,57.1998]
[1672644497568,0.11915984,10.992,10.971,5.0]
[1672644497879,0.11915984,10.992,10.97,16.1651831]
[1672644498094,5.11915984,10.992,10.972,16.1651831]
[1672644498302,0.11915984,10.991,10.972,16.1651831]
[1672644498516,0.11915984,10.991,10.969,57.1998]
[1672644498729,0.11915984,10.991,10.97,5.0]
[1672644498933,0.11915984,10.991,10.975,50.0]
[1672644499144,0.11915984,10.992,10.975,50.0]
[1672644499349,0.11915984,10.992,10.976,21.19088935]
[1672644499564,0.11915984,10.992,10.976,16.19088935]
[1672644499776,0.11915984,10.992,10.969,52.1998]
[1672644500196,7.01915984,10.992,10.969,52.1998]
[1672644500405,0.11915984,10.991,10.97,5.0]
[1672644500723,0.11915984,10.991,10.97,29.51969478]
[1672644501143,0.11915984,10.991,10.976,50.0]
[1672644501354,0.11915984,10.991,10.977,5.0]
[1672644501777,0.11915984,10.991,10.976,50.0]
[1672644501975,0.11915984,10.991,10.977,5.0]
[1672644502610,0.11915984,10.991,10.972,5.0]
[1672644503246,0.11915984,10.991,10.973,16.15254727]
[1672644503666,5.0,10.993,10.974,5.0]
[1672644503667,0.11915984,10.992,10.974,5.0]
[1672644504301,0.11915984,10.992,10.976,50.0]
[1672644504614,5.0,10.993,10.992,0.06504236]
[1672644504822,5.0,10.993,10.978,5.0]
[1672644505347,5.0,10.993,10.976,50.0]
[1672644505976,5.0,10.993,10.977,16.1520271]
[1672644506397,5.11951079,10.993,10.977,0.11899087]
[1672644507235,70.03,10.992,10.967,0.11899087]
[1672644507551,0.11951079,10.99,10.968,5.11899087]
[1672644507763,0.11951079,10.99,10.969,0.11899087]
[1672644508283,0.11951079,10.99,10.969,16.30641556]
[1672644508605,0.11951079,10.99,10.971,0.11899087]
[1672644509023,0.11951079,10.991,10.971,0.11899087]
[1672644509341,0.11951079,10.991,10.972,5.11899087]
[1672644509549,0.11951079,10.991,10.973,0.11899087]
[1672644509758,0.11951079,10.991,10.976,50.0]
[1672644509966,0.11951079,10.991,10.977,5.11899087]
[1672644510486,0.11951079,10.993,10.977,0.11899087]
[1672644510909,1.3,10.989,10.97,5.11899087]
[1672644511124,0.11951079,10.988,10.971,0.11899087]
[1672644511862,0.11951079,10.988,10.972,5.0]
[1672644512176,0.11951079,10.988,10.976,50.0]
[1672644512386,0.11951079,10.988,10.977,5.0]
[1672644513015,0.11951079,10.988,10.976,50.0]
[1672644513648,0.11951079,10.988,10.977,5.0]
[1672644514172,0.11951079,10.992,10.977,5.0]
[1672644514592,0.11951079,10.992,10.978,0.11899087]
[1672644515847,0.11951079,10.993,10.978,0.11899087]
[1672644516061,0.11951079,10.995,10.978,0.11899087]
[1672644516898,0.11951079,10.995,10.979,5.0]
[1672644517113,0.11951079,11.001,10.98,0.11899087]
[1672644517324,0.11951079,11.001,10.98,16.23634631]
[1672644517532,0.11951079,11.001,10.981,5.11899087]
[1672644517846,0.11951079,11.001,10.986,50.0]
[1672644518166,0.11951079,11.001,10.987,5.11899087]
[1672644518477,0.11951079,11.004,10.988,0.11899087]
[1672644520796,0.11951079,11.004,10.987,5.11899087]
[1672644521109,0.11951079,11.006,10.988,0.11899087]
[1672644521948,0.11942404,11.006,10.988,0.1197165]
[1672644524472,0.11942404,11.007,10.987,0.1197165]
[1672644524680,0.11942404,11.007,10.987,5.1197165]
[1672644524892,0.11942404,11.007,10.988,0.1197165]
[1672644525833,0.11942404,11.008,10.988,0.1197165]
[1672644526046,0.11942404,11.009,10.988,0.1197165]
[1672644526363,0.11942404,11.009,10.988,16.19249704]
[1672644526571,0.11942404,11.009,10.989,5.1197165]
[1672644526782,0.11942404,11.009,10.99,0.1197165]
[1672644527728,0.11942404,11.009,10.991,5.0]
[1672644527935,5.0,11.009,10.992,0.1197165]
[1672644528151,0.11942404,11.008,10.992,0.1197165]
[1672644528775,0.11942404,11.008,10.99,0.1197165]
[1672644531512,13.71,11.005,10.99,0.1197165]
[1672644531726,68.27942404,11.004,10.977,50.0]
[1672644531930,5.11942404,11.003,10.978,5.0]
[1672644532146,0.11942404,11.002,10.978,5.0]
[1672644532360,0.11942404,11.002,10.987,50.0]
[1672644532671,0.11942404,11.002,10.988,5.0]
[1672644532879,0.11942404,11.003,10.988,5.0]
[1672644533090,0.11942404,11.003,10.987,50.0]
[1672644533515,0.11942404,11.003,10.988,5.0]
[1672644533931,0.11942404,11.003,10.987,50.0]
[1672644534669,0.11942404,11.003,10.988,5.0]
[1672644536138,0.11942404,11.003,10.98,5.0]
[1672644536351,0.11942404,11.003,10.987,50.0]
[1672644536667,0.11942404,11.003,10.981,21.10781822]
[1672644536872,0.11942404,11.003,10.987,50.0]
[1672644537084,5.119096,11.004,10.982,21.10781822]
[1672644537293,5.119096,11.002,10.982,21.10781822]
[1672644537506,5.119096,11.002,10.982,5.0]
[1672644537713,81.22134423,11.003,10.997,50.0]
[1672644537714,7.60282895,11.003,10.997,50.0]
[1672644537927,5.0,11.015,10.998,5.0]
[1672644538451,5.0,11.015,10.987,5.0]
[1672644538662,5.0,11.015,10.997,50.0]
[1672644538872,68.1,11.014,10.998,5.0]
[1672644539083,73.09,11.015,10.998,5.0]
[1672644539293,1.9,11.012,10.999,5.0]
[1672644540767,1.9,11.012,11.007,50.0]
[1672644540974,13.82,11.04,10.999,5.0]
[1672644540975,356.24830455,11.02,11.008,5.0]
[1672644541289,243.66432056,11.02,11.008,5.0]
[1672644542122,243.66432056,11.02,11.017,50.0]
[1672644542337,243.66432056,11.02,11.008,5.0]
[1672644543601,243.66432056,11.02,11.007,50.0]
[1672644543805,5.0,11.019,11.007,50.0]
[1672644544019,243.66432056,11.02,11.007,50.0]
[1672644544226,243.66432056,11.02,11.008,5.0]
[1672644545279,243.66432056,11.02,11.002,5.0]
[1672644545600,5.0,11.019,11.001,51.4814]
[1672644546020,5.0,11.019,11.002,5.0]
[1672644546231,5.0,11.019,11.007,50.0]
[1672644546436,243.66432056,11.02,11.008,5.0]
[1672644547386,243.66432056,11.02,11.017,50.0]
[1672644547597,243.66432056,11.02,11.018,5.0]
[1672644547806,243.66432056,11.02,11.008,5.0]
[1672644548017,243.66432056,11.02,11.007,55.0]
[1672644548856,243.66432056,11.02,11.007,5.0]
[1672644549382,243.66432056,11.02,11.008,5.0]
[1672644549802,223.68974276,11.02,11.017,50.0]
[1672644550012,119.8798,11.049,11.018,5.0]
[1672644550223,5.0,11.048,11.018,5.0]
[1672644550429,67.89,11.047,11.018,5.0]
[1672644550639,5.0,11.046,11.018,5.0]
[1672644550850,67.9,11.045,11.018,5.0]
[1672644551060,5.0,11.044,11.018,5.0]
[1672644551273,67.92,11.043,11.017,50.0]
[1672644551483,13.57,11.039,11.018,5.0]
[1672644551696,80.50132456,11.043,11.018,5.0]
[1672644551900,12.58132456,11.038,11.018,5.0]
[1672644552213,12.58132456,11.038,11.008,5.0]
[1672644552214,0.11982454,11.036,11.008,5.0]
[1672644552422,5.11982454,11.034,11.008,5.0]
[1672644552637,5.11982454,11.034,11.009,49.3272]
[1672644552850,0.11982454,11.033,11.01,5.0]
[1672644553166,0.11982454,11.033,11.017,50.0]
[1672644553375,0.11982454,11.033,11.018,5.0]
[1672644553585,0.11982454,11.033,11.017,50.0]
[1672644554109,0.11982454,11.033,11.018,5.0]
[1672644554527,0.11982454,11.034,11.018,5.0]
[1672644556212,0.11982454,11.034,11.017,50.0]
[1672644556738,0.11982454,11.034,11.018,5.0]
[1672644557158,0.11982454,11.036,11.018,5.0]
[1672644557472,0.11982454,11.039,11.018,5.0]
[1672644557888,0.11982454,11.039,11.018,56.7212]
[1672644558207,5.11982454,11.038,11.019,5.0]
[1672644558419,0.11982454,11.037,11.019,5.0]
[1672644558629,0.11982454,11.036,11.019,5.0]
[1672644558832,0.11982454,11.035,11.019,5.0]
[1672644559051,5.0,11.048,11.019,5.0]
[1672644559252,818.51928768,11.068,11.019,5.0]
[1672644559253,2189.62432796,11.079,11.036,50.0]
[1672644559470,13.61,11.079,11.047,50.0]
[1672644559888,80.23877565,11.078,11.047,50.0]
[1672644560092,80.23877565,11.078,11.048,5.0]
[1672644560316,5.0,11.077,11.057,50.0]
[1672644560526,17.53877565,11.077,11.057,50.0]
[1672644560943,12.53877565,11.076,11.057,50.0]
[1672644561256,12.53877565,11.076,11.058,5.0]
[1672644561887,67.65,11.087,11.058,5.0]
[1672644562100,5.0,11.086,11.058,5.0]
[1672644562307,67.66,11.085,11.058,5.0]
[1672644562730,13.71,11.082,11.058,5.0]
[1672644562935,13.6,11.074,11.048,5.0]
[1672644563150,67.73,11.073,11.047,50.0]
[1672644563362,67.73,11.073,11.036,5.0]
[1672644563569,13.71,11.067,11.037,55.0]
[1672644563885,13.71,11.067,11.047,50.0]
[1672644563886,72.78,11.066,11.047,50.0]
[1672644564097,13.71,11.061,11.027,55.0]
[1672644564306,67.81,11.06,11.039,5.0]
[1672644564518,80.3282379,11.06,11.039,5.0]
[1672644564721,5.0,11.059,11.038,50.0]
[1672644564933,5.0,11.057,11.038,50.0]
[1672644565149,67.84,11.056,11.029,5.0]
[1672644565354,13.71,11.048,11.028,50.0]
[1672644565565,67.89,11.047,11.018,50.0]
[1672644565776,67.89,11.047,11.017,50.0]
[1672644565987,5.0,11.046,11.018,57.8964]
[1672644566407,5.0,11.046,11.028,50.0]
[1672644566619,5.0,11.046,11.029,5.0]
[1672644566826,5.0,11.046,11.02,5.0]
[1672644567037,67.9,11.045,11.02,5.0]
[1672644567246,80.4690936,11.045,11.02,5.0]
[1672644567454,5.0,11.044,11.028,50.0]
[1672644567670,0.11951332,11.043,11.029,0.11927073]
[1672644567877,0.11951332,11.043,11.029,5.0]
[1672644568089,0.11951332,11.048,11.03,0.11927073]
[1672644568511,12.67898306,11.048,11.03,0.11927073]
[1672644568718,5.11951332,11.047,11.03,0.11927073]
[1672644568931,5.11951332,11.046,11.03,0.11927073]
[1672644569142,0.11951332,11.045,11.024,0.11927073]
[1672644569355,67.91,11.044,11.023,5.11927073]
[1672644569665,12.55946974,11.048,11.023,5.11927073]
[1672644569666,561.31088761,11.1,11.089,2797.95407151]
[1672644569881,384.34560193,11.1,11.099,100.0]
[1672644570193,334.34560193,11.1,11.099,117.57]
[1672644570405,63.56560193,11.1,11.099,24.08679945]
[1672644570609,54.72,11.137,11.114,40.63668231]
[1672644570818,13.6,11.115,11.102,30.77803491]
[1672644571140,205.65,11.103,11.09,15.8240854]
[1672644571347,67.56,11.102,11.089,2291.72905967]
[1672644571555,67.56,11.102,11.089,2048.37418293]
[1672644571772,68.44,11.09,11.089,801.56618293]
[1672644571974,136.32,11.09,11.03,1.5]
[1672644572184,136.32,11.09,11.058,50.0]
[1672644572185,13.67,11.079,11.058,50.0]
[1672644572399,67.7,11.078,11.058,50.0]
[1672644572604,67.63,11.089,11.072,61.77810827]
[1672644572821,67.63,11.089,11.059,5.0]
[1672644573028,67.57,11.1,11.059,5.0]
[1672644573242,13.71,11.079,11.059,5.0]
[1672644573553,81.41,11.078,11.058,50.0]
[1672644573972,81.41,11.078,11.059,16.08670871]
[1672644574187,13.71,11.071,11.052,5.0]
[1672644574715,13.6,11.072,11.052,5.0]
[1672644574920,67.74,11.071,11.052,5.0]
[1672644575345,13.79,11.079,11.058,50.0]
[1672644575346,67.7,11.078,11.058,50.0]
[1672644575655,67.7,11.078,11.052,5.0]
[1672644576078,13.71,11.072,11.052,5.0]
[1672644576290,67.74,11.071,11.052,5.0]
[1672644577233,67.74,11.071,11.049,5.0]
[1672644577441,67.74,11.071,11.048,55.0]
[1672644577442,67.74,11.071,11.028,55.0]
[1672644577653,13.61,11.052,11.051,34.20999166]
[1672644577858,102.62997498,11.048,11.038,50.0]
[1672644578600,81.52,11.061,11.039,5.0]
[1672644578810,80.63039849,11.062,11.039,5.0]
[1672644579031,562.57422735,11.062,11.04,15.18550567]
[1672644579225,415.59685143,11.061,11.041,5.0]
[1672644579438,134.84039849,11.061,11.041,5.0]
[1672644579646,13.7,11.062,11.041,5.0]
[1672644579854,67.81,11.061,11.039,5.0]
[1672644580072,13.7,11.06,11.03,5.0]
[1672644580283,67.82,11.059,11.04,14.21704275]
[1672644580696,67.82,11.059,11.031,14.21704275]
[1672644580910,67.82,11.059,11.032,5.0]
[1672644581124,134.85039849,11.059,11.032,5.0]
[1672644581334,67.81,11.061,11.032,5.0]
[1672644581543,268.11777441,11.059,11.032,5.0]
[1672644581747,67.82,11.058,11.039,50.0]
[1672644581964,67.8,11.062,11.04,5.0]
[1672644582168,268.11777441,11.064,11.04,19.21704275]
[1672644582488,13.59,11.069,11.03,5.0]
[1672644582489,67.03039849,11.052,11.03,5.0]
[1672644582699,67.87,11.051,11.03,5.0]
[1672644582913,67.03039849,11.06,11.03,5.0]
[1672644583121,548.93842624,11.06,11.031,14.23555871]
[1672644583326,1.5,11.061,11.031,14.23555871]
[1672644583327,67.03039849,11.056,11.032,5.0]
[1672644583544,268.11777441,11.052,11.033,0.11987038]
[1672644583856,0.1196337,11.05,11.033,0.11987038]
[1672644584060,0.1196337,11.048,11.034,0.11987038]
[1672644584273,0.1196337,11.05,11.034,0.11987038]
[1672644584485,0.1196337,11.05,11.032,5.11987038]
[1672644584696,0.1196337,11.05,11.033,0.11987038]
[1672644584910,0.1196337,11.053,11.033,14.35542909]
[1672644585224,0.1196337,11.051,11.034,0.11987038]
[1672644585435,134.90039849,11.05,11.034,0.11987038]
[1672644585643,0.1196337,11.049,11.034,0.11987038]
[1672644585953,0.1196337,11.047,11.032,0.11987038]
[1672644586170,0.1196337,11.049,11.032,0.11987038]
[1672644586374,0.1196337,11.047,11.033,0.11987038]
[1672644586584,0.1196337,11.028,11.02,50.0]
[1672644587218,0.1196337,11.028,11.021,13.44501784]
[1672644587427,0.99242436,11.03,11.021,18.44501784]
[1672644588062,0.69859774,11.032,11.021,13.44501784]
[1672644588260,0.69859774,11.032,11.01,5.0]
[1672644588261,0.69859774,11.032,11.022,13.44501784]
[1672644588682,0.69859774,11.032,11.022,5.0]
[1672644588896,0.69859774,11.032,11.021,13.44501784]
[1672644589111,0.69859774,11.032,11.023,13.44501784]
[1672644589635,0.69859774,11.032,11.011,13.44501784]
[1672644589847,0.69859774,11.032,11.012,5.0]
[1672644590054,0.69859774,11.032,11.02,50.0]
[1672644590365,0.69859774,11.032,11.021,18.44501784]
[1672644590783,0.69859774,11.032,11.021,13.44501784]
[1672644590992,0.69859774,11.032,11.03,50.0]
[1672644591203,13.67,11.05,11.022,13.44501784]
[1672644591204,67.03039849,11.048,11.023,5.0]
[1672644591418,268.11777441,11.046,11.031,5.0]
[1672644591624,268.11777441,11.046,11.023,5.0]
[1672644591835,67.03039849,11.045,11.03,50.0]
[1672644592050,13.47,11.039,11.031,5.0]
[1672644592257,13.53,11.042,11.031,5.0]
[1672644592683,13.57,11.037,11.03,50.0]
[1672644592895,13.59,11.039,11.03,50.0]
[1672644593103,13.59,11.043,11.03,50.0]
[1672644593522,13.59,11.037,11.023,5.0]
[1672644593841,150.0,11.029,11.022,5.0]
[1672644594152,13.47,11.04,11.028,50.0]
[1672644594364,13.47,11.04,11.029,5.0]
[1672644594575,13.47,11.04,11.029,17.5754081]
[1672644594987,67.03039849,11.048,11.028,50.0]
[1672644594988,13.49,11.038,11.03,12.5754081]
[1672644595523,13.59,11.035,11.029,17.5754081]
[1672644595732,13.59,11.035,11.029,12.5754081]
[1672644595942,13.59,11.035,11.024,5.0]
[1672644596152,13.59,11.038,11.024,5.0]
[1672644596467,13.59,11.038,11.025,12.55545436]
[1672644596994,13.57,11.026,11.025,12.55545436]
[1672644597205,13.57,11.026,11.009,50.0]
[1672644597406,13.59,11.038,11.02,37.30216317]
[1672644597617,67.03039849,11.055,11.03,37.30216317]
[1672644597828,12.69783683,11.049,11.021,17.58956394]
[1672644598144,13.57,11.042,11.022,5.0]
[1672644598354,13.59,11.04,11.022,17.58956394]
[1672644598778,13.59,11.04,11.023,12.58956394]
[1672644599091,0.1189146,11.039,11.024,0.11932601]
[1672644599505,12.81675143,11.039,11.024,0.11932601]
[1672644599717,13.51,11.036,11.023,0.11932601]
[1672644600457,14.97,11.039,11.03,37.30216317]
[1672644600869,14.97,11.039,11.023,11.91842941]
[1672644601192,13.59,11.033,11.023,0.11932601]
[1672644601402,13.57,11.031,11.023,0.11932601]
[1672644601817,13.48,11.033,11.023,0.11932601]
[1672644602037,13.59,11.037,11.023,0.11932601]
[1672644602562,13.59,11.037,11.022,0.11932601]
[1672644602563,13.57,11.034,11.022,0.11932601]
[1672644602873,0.1189146,11.036,11.021,0.11932601]
[1672644603078,13.53,11.028,11.022,0.11932601]
[1672644603499,12.69783683,11.023,11.021,3.57497507]
[1672644603710,0.1189146,11.018,10.999,55.0]
[1672644603914,0.1189146,11.018,11.003,11.88097561]
[1672644604129,0.1189146,11.018,11.01,37.30216317]
[1672644604342,67.03039849,11.035,11.011,5.0]
[1672644604547,550.9700601,11.037,11.011,5.0]
[1672644604548,14.89,11.037,11.011,5.0]
[1672644604759,13.49,11.029,11.012,11.88097561]
[1672644605183,13.57,11.026,11.012,11.88097561]
[1672644605603,67.03039849,11.029,11.012,11.88097561]
[1672644605604,13.57,11.023,11.012,11.88097561]
[1672644605913,13.51,11.026,11.012,11.88097561]
[1672644606122,13.48,11.024,11.012,11.88097561]
[1672644606546,13.59,11.021,11.011,11.88097561]
[1672644606758,13.59,11.018,11.011,11.88097561]
[1672644607283,13.59,11.022,11.011,11.88097561]
[1672644607813,13.49,11.019,11.011,11.88097561]
[1672644609390,13.49,11.019,11.005,11.88097561]
[1672644609592,1.3,11.025,11.005,11.88097561]
[1672644609593,13.5,11.016,11.005,11.88097561]
[1672644609808,13.5,11.016,11.011,37.30216317]
[1672644610018,13.5,11.016,11.005,11.88097561]
[1672644610231,13.5,11.016,11.012,11.88097561]
[1672644610644,13.5,11.016,11.011,37.30216317]
[1672644611277,13.5,11.016,11.012,11.88097561]
[1672644611489,13.59,11.013,11.001,37.30216317]
[1672644611694,13.5,11.009,11.001,37.30216317]
[1672644612118,13.59,11.011,11.002,11.17356914]
[1672644612964,1.3,11.018,11.0,63.59]
[1672644613282,13.51,11.017,11.011,37.30216317]
[1672644613488,54.36,11.017,11.001,16.17356914]
[1672644613909,54.36,11.017,11.002,11.17356914]
[1672644614120,13.59,11.012,11.002,11.17356914]
[1672644614746,0.11923706,11.015,11.002,11.17356914]
[1672644614956,13.5,11.011,11.002,11.17356914]
[1672644615274,13.59,11.008,11.002,0.11952711]
[1672644615906,13.59,11.008,11.002,10.57617568]
[1672644616114,13.59,11.008,11.001,37.30216317]
[1672644616326,13.59,11.008,10.993,5.0]
[1672644616535,13.59,11.008,10.991,42.30216317]
[1672644616745,13.59,11.005,10.994,10.45414519]
[1672644617167,13.59,11.005,10.992,10.45414519]
[1672644617373,13.59,11.002,10.992,10.45414519]
[1672644617588,13.57,11.005,10.992,10.45414519]
[1672644617792,13.59,11.002,10.992,10.45414519]
[1672644618218,13.59,11.002,10.991,47.75630836]
[1672644618641,13.59,11.002,10.992,10.45414519]
[1672644619164,13.59,11.002,10.992,15.45414519]
[1672644619377,13.51,11.004,10.992,15.45414519]
[1672644619589,13.51,11.004,11.001,37.30216317]
[1672644619894,13.48,11.007,11.001,37.30216317]
[1672644620112,13.59,11.01,11.002,10.45414519]
[1672644620945,13.59,11.007,11.002,10.45414519]
[1672644621266,13.59,11.007,10.991,5.0]
[1672644621477,13.59,11.007,10.993,9.13958454]
[1672644621687,13.59,11.007,10.994,5.0]
[1672644622213,13.59,11.007,10.992,9.13958454]
[1672644622423,54.36,11.01,10.991,37.30216317]
[1672644622424,13.49,11.003,10.995,9.13958454]
[1672644622837,13.49,11.003,10.992,14.13958454]
[1672644623159,13.5,11.0,10.992,9.13958454]
[1672644623366,13.5,11.0,10.993,9.13958454]
[1672644623678,13.51,10.996,10.981,5.0]
[1672644623892,13.59,10.999,10.99,50.0]
[1672644624209,68.24923706,11.008,10.992,5.0]
[1672644624210,13.48,11.007,10.992,5.0]
[1672644624418,0.11923706,11.008,11.001,37.30216317]
[1672644625047,13.68923706,11.008,11.001,37.30216317]
[1672644625469,13.68923706,11.008,10.992,5.0]
[1672644625681,13.48,11.004,10.991,42.30216317]
[1672644626208,13.48,11.004,10.993,5.0]
[1672644626521,54.55923706,11.008,10.994,7.9526763]
[1672644626522,0.11923706,11.007,10.994,7.9526763]
[1672644626941,0.11923706,11.007,11.001,37.30216317]
[1672644627152,0.11923706,11.007,11.002,5.0]
[1672644627472,0.11923706,11.007,11.001,37.30216317]
[1672644627676,0.11923706,11.007,10.995,5.0]
[1672644627987,0.11923706,11.007,11.002,7.94959432]
[1672644628201,294.59284079,11.018,11.003,5.0]
[1672644628202,281.89500396,11.018,11.003,5.0]
[1672644628417,13.59,11.013,11.003,5.0]
[1672644628617,67.03039849,11.016,11.001,37.30216317]
[1672644628938,111.90648951,10.999,10.99,50.0]
[1672644629148,111.90648951,10.999,10.991,37.30216317]
[1672644629356,125.49648951,10.999,10.991,45.2572828]
[1672644629771,125.49648951,10.999,10.992,7.95511963]
[1672644630410,111.90648951,10.999,10.992,7.95511963]
[1672644630933,111.90648951,10.999,10.991,50.2572828]
[1672644631143,111.90648951,10.999,10.993,7.95511963]
[1672644631668,111.90648951,10.999,10.998,37.30216317]
[1672644631881,111.90648951,10.999,10.991,5.0]
[1672644632086,111.90648951,10.999,10.998,45.2572828]
[1672644633246,111.90648951,10.999,10.99,50.0]